[Event "7th Sharjah Masters 2024"]
[Site "Sharjah"]
[Date "2024.05.16"]
[Round "3.1"]
[White "Tabatabaei, M. Amin"]
[Black "Murzin, Volodar"]
[Result "1/2-1/2"]
[ECO "D61"]
[WhiteElo "2707"]
[BlackElo "2634"]
[Annotator "TA"]
[PlyCount "102"]
[EventDate "2024.05.13"]
[EventType "swiss"]
[EventCountry "UAE"]
[SourceTitle "playchess.com"]
[Source "ChessBase"]
[SourceQuality "1"]
[TimeControl "5400+30"]

{[%evp 15,102,16,25,-53,0,0,-10,-27,30,25,20,27,26,0,48,40,38,39,39,39,35,-63,-53,-68,-55,-60,-65,-69,-52,-53,-45,-72,-57,-65,-56,-52,-62,-82,-77,-74,-42,-60,-59,-36,-41,-49,-57,-55,0,0,0,0,0,0,0,0,0,0,0,0,0,0,0,0,22,13,13,13,13,12,12,20,54,57,80,83,115,71,62,14,14,0,0,0,0,0,0,0,0]} 1. d4 {[%emt 0:00:30]} d5 {[%emt 0:00:10]} 2. c4 {[%emt 0:00:00]} c6 {[%emt 0:00:07]} 3. Nf3 {[%emt 0:00:00]} Nf6 {[%emt 0:00:05]} 4. Nc3 {[%emt 0:00:00]} e6 {[%emt 0:05:30]} 5. Bg5 {[%emt 0:00:40]} Nbd7 {[%emt 0:00:22]} 6. e3 {[%emt 0:00:13]} Be7 {[%emt 0:01:11]} 7. Qc2 {[%emt 0:00:08]} h6 {[%emt 0:03:03]} 8. Bh4 {[%emt 0:10:39]} O-O {[%emt 0:02:59]} 9. Rg1 {[%emt 0:00:14]} (9. Be2 $11) 9... Ne4 {[%emt 0:20:52]} 10. Bxe7 {[%emt 0:00:20]} Qxe7 {[%emt 0:00:04]} 11. O-O-O {[%emt 0:19:35]} f5 {[%emt 0:06:52]} (11... Nxc3 $142 12. Qxc3 dxc4) 12. Kb1 $11 {[%emt 0:02:56]} a6 {[%emt 0:06:46]} 13. g3 {[%emt 0:04:08]} b5 {[%emt 0:05:12]} 14. Nh4 {[%emt 0:03:26]} Qb4 {[%emt 0:18:20]} (14... dxc4 $2 15. Nxe4 fxe4 16. Ng6 $18) (14... bxc4 15. Ng6 Qf6 16. Nxf8 Nxc3+ 17. Qxc3) (14... Kh7 $11 {should be considered.}) 15. Nxe4 {[%emt 0:05:02]} fxe4 {[%emt 0:00:25]} 16. cxd5 {[%emt 0:00:27]} exd5 {[%emt 0:13:40]} 17. g4 {[%emt 0:07:38]} (17. Qxc6 Rxf2 18. Qxd5+ (18. Qxa8 $2 Qxb2#) 18... Kh8 $11) 17... Rf6 {[%emt 0:02:01]} 18. Nf5 {[%emt 0:15:32]} (18. Rg3 $14) 18... Nb6 $15 {[%emt 0:02:19][%cal Ob4f8]} 19. Ng3 {[%emt 0:00:03]} Qf8 {[%emt 0:01:13]} 20. Rd2 {[%emt 0:03:05]} Nc4 {[%emt 0:02:15]} (20... Bxg4 21. Nxe4 Rg6 22. Ng3 $11) 21. Bxc4 {[%emt 0:01:44]} bxc4 {[%emt 0:00:01]} 22. Nh5 {[%emt 0:00:42]} Rf3 {[%emt 0:00:54]} 23. g5 {[%emt 0:02:02][%cal Bg4g5,Bg5g6][%mdl 32]} Qf7 {[%emt 0:03:33]} 24. g6 $1 {[%emt 0:01:22]} (24. Nf4 $2 Rxf4 25. gxh6 (25. exf4 $2 e3 $19) 25... Rg4 26. Rxg4 Bxg4 $19) 24... Qf8 {[%emt 0:01:07]} 25. Ka1 {[%emt 0:01:54]} a5 {[%emt 0:01:31]} 26. b3 {[%emt 0:02:14] [#]} Ba6 {[%emt 0:00:22]} 27. Rb1 {[%emt 0:00:13]} Qd6 {[%emt 0:02:23][%csl LRg6,LRh2]} 28. bxc4 $1 {[%emt 0:02:10]} Qxg6 {[%emt 0:00:07]} 29. Nf4 {[%emt 0:00:21] [#]} Rxf4 {[%emt 0:00:29]} 30. exf4 {[%emt 0:00:17]} Bxc4 {[%emt 0:00:02] And now ...Bd3 would win.} 31. Qc3 {[%emt 0:01:10] White is weak on the light squares} Qf6 {[%emt 0:00:36]} (31... Re8 $1 $15) 32. f3 $11 {[%emt 0:02:27]} Re8 {[%emt 0:00:07] Strongly threatening ...e3.} 33. Re1 {[%emt 0:01:17] aiming for fxe4.} Qf7 {[%emt 0:00:48]} 34. fxe4 {[%emt 0:03:19]} dxe4 {[%emt 0:00:08]} 35. Rg2 {[%emt 0:00:05]} Bd5 {[%emt 0:00:31]} 36. Qe3 {[%emt 0:00:10]} ({Reject} 36. Qxa5 Qxf4 (36... e3 37. Rge2 $11) 37. Qc3 (37. Reg1 g5 $17) 37... Qf6 $17 (37... e3 38. Rge2 $11)) 36... Kh7 {[%emt 0:01:45]} 37. Reg1 {[%emt 0:00:38] Hoping for Rxg7+.} Rg8 {[%emt 0:00:01]} 38. h4 {[%emt 0:02:03]} Qf6 {[%emt 0:00:37]} 39. h5 {[%emt 0:00:12]} c5 {[%emt 0:00:37]} 40. Rg6 {[%emt 0:00:04]} Qxd4+ {[%emt 0:00:17]} 41. Qxd4 {[%emt 0:00:04]} cxd4 {[%emt 0:00:02][%mdl 4096] Endgame. KRR-KRB} 42. Rd6 {[%emt 0:00:10]} Bf7 {[%emt 0:00:09]} 43. Rxd4 {[%emt 0:00:25]} Re8 {[%emt 0:00:12][%cal Oe4e3]} 44. Ra4 {[%emt 0:02:47]} Bxh5 {[%emt 0:00:56]} 45. Rxa5 {[%emt 0:00:04]} Bf7 {[%emt 0:00:08]} 46. a4 {[%emt 0:00:16] Black must now prevent Rf5.} e3 {[%emt 0:00:35]} 47. Re5 {[%emt 0:00:57]} (47. Kb2 $14 {feels stronger.}) 47... g5 $1 {[%emt 0:01:33] The position is equal.} 48. Re1 {[%emt 0:06:30]} gxf4 {[%emt 0:00:09]} 49. Rf5 {[%emt 0:00:02][%csl LRf4,LRf7]} Re4 {[%emt 0:01:02]} 50. Rxf7+ {[%emt 0:00:27]} Kg6 {[%emt 0:00:01]} 51. Rf8 {[%emt 0:00:16]} Kg7 {[%emt 0:00:04] Weighted Error Value: White=0.12 (very precise) /Black=0.10 (very precise) .  Mistake:       	White=2     	Black=3      Inaccurate:     	White=2     	Black=4      OK:         	White=18    	Black=15     Best:        	White=3     	Black=4      Strong:       	White=2     	Black=1      Brilliant:      	---       	Black=1} 1/2-1/2

[Event "7th Sharjah Masters 2024"]
[Site "Sharjah"]
[Date "2024.05.16"]
[Round "3.2"]
[White "Fedoseev, Vladimir"]
[Black "Salem, A.R. Saleh"]
[Result "0-1"]
[ECO "E60"]
[WhiteElo "2702"]
[BlackElo "2629"]
[Annotator "TA"]
[PlyCount "60"]
[EventDate "2024.05.13"]
[EventType "swiss"]
[EventCountry "UAE"]
[SourceTitle "playchess.com"]
[Source "ChessBase"]
[SourceQuality "1"]
[TimeControl "5400+30"]

{[%evp 9,60,20,24,18,16,38,80,79,88,20,33,-9,0,0,-33,-37,-43,-9,0,-11,-22,-33,0,0,0,0,0,0,50,60,27,37,98,98,84,76,129,122,103,27,114,103,104,-143,-120,-127,-143,-29987,-29988,-29993,1224,-29994,1268]} 1. d4 {[%emt 0:00:03]} Nf6 {[%emt 0:00:10]} 2. c4 {[%emt 0:00:08]} g6 {[%emt 0:00:15]} 3. h4 {[%emt 0:00:12]} d6 {[%emt 0:02:11]} 4. Nc3 {[%emt 0:00:20]} Nbd7 {[%emt 0:00:32]} 5. Qc2 {[%emt 0:02:52]} c5 {[%emt 0:08:22]} 6. d5 {[%emt 0:05:52]} a6 {[%emt 0:00:33]} 7. e4 {[%emt 0:00:13]} b5 {[%emt 0:00:28]} 8. cxb5 {[%emt 0:00:31] White is better.} Bg7 {[%emt 0:00:06]} 9. bxa6 {[%emt 1:24:49]} (9. a4 $16) 9... O-O $11 {[%emt 0:01:20][%cal Od8a5]} 10. h5 {[%emt 0:00:00]} Nxh5 {[%emt 0:05:51][%cal Od7e5]} 11. g4 {[%emt 0:00:00][%cal Bg2g4,Bg4g5][%mdl 32]} Nhf6 {[%emt 0:00:04]} 12. g5 {[%emt 0:00:00]} Nh5 {[%emt 0:00:59]} 13. Be2 $1 {[%emt 0:00:00]} Bxa6 {[%emt 0:03:43]} 14. Bxh5 {[%emt 0:00:00]} gxh5 {[%emt 0:00:07]} 15. f4 {[%emt 0:00:00] Wards off Ne5} e6 {[%emt 0:16:30]} 16. Nge2 {[%emt 0:00:00][%cal Bg1e2,Be2g3,Bg3h5][%mdl 32]} Qe8 {[%emt 0:12:40]} 17. dxe6 {[%emt 0:00:00]} fxe6 {[%emt 0:03:45][%cal Od6d5]} 18. Ng3 {[%emt 0:00:00]} Ne5 {[%emt 0:06:21]} 19. fxe5 $14 {[%emt 0:00:00]} Bxe5 {[%emt 0:00:12]} 20. Qg2 {[%emt 0:00:00]} Rb8 {[%emt 0:01:07]} (20... h4 $1 $14 21. Rxh4 Ra7) 21. Nxh5 $16 {[%emt 0:00:00]} Qg6 {[%emt 0:00:26] Inhibits Nf6+.} 22. Be3 {[%emt 0:00:00] Hoping for 0-0-0.} d5 {[%emt 0:00:39]} 23. O-O-O {[%emt 0:00:00]} (23. Bxc5 $6 Bxc3+ (23... Rxb2 24. Qxb2 Bxc3+ 25. Qxc3 $19) (23... Rfc8 $2 24. Na4 $18) 24. bxc3 Rb2 $11) 23... d4 {[%emt 0:00:37] [#]} 24. Rdg1 {[%emt 0:00:00]} (24. Bd2 Bd3 25. Na4 Bxe4 $11) (24. Qh3 $1 $16 dxc3 25. b3) 24... dxc3 {[%emt 0:06:07]} (24... dxe3 $11 {remains equal.} 25. Nf6+ Rxf6 (25... Bxf6 26. gxf6 Qxg2 27. Rxg2+ Kf7 28. e5 $16) 26. gxf6 Qxg2 27. Rxg2+ Kf7) 25. b3 $1 {[%emt 0:00:00]} Bd3 {[%emt 0:12:19]} 26. Qh3 $2 {[%emt 0:00:00] [#]} (26. Nf6+ $1 $16 {is forced if you want to stay better.} Bxf6 27. gxf6 Qxg2 (27... Rxf6 $2 28. Qh2 $18) 28. Rxg2+ Kf7 29. Rxh7+ (29. Bxc5 Bxe4 30. Bxf8 Rxf8 $11) 29... Kxf6 30. Bxc5 Bxe4 31. Bxf8 Bxg2 32. Bg7+ Kg6 33. Rh2 Kxg7 34. Rxg2+ Kf6 35. Kc2) 26... Rxb3 $3 $17 {[%emt 0:05:03][%mdl 512] Black is much more active.} 27. axb3 {[%emt 0:00:00] [#]} Ra8 $1 $40 {[%emt 0:00:06][%cal Ra8a1][%mdl 128] Black has strong attack. The board is on fire.} 28. Kd1 $2 {[%emt 0:00:00][%mdl 8192] [#]} (28. Bxc5 $2 Ra1#) (28. Nf6+ $17 Bxf6 29. Qxe6+ (29. Qxh7+ {leads to mate.} Qxh7 30. gxf6+ Kf8 31. Kd1 Ra1+ 32. Bc1 Qxe4 33. Rh8+ Kf7) 29... Qf7 30. gxf6+ (30. Qxf6 $2 Ra1#) (30. Qxf7+ $2 Kxf7 31. Kd1 Bd4 $19) 30... Kh8 31. Qc8+ (31. Qxf7 $2 Ra1#) (31. Rxh7+ {gets mated.} Qxh7) 31... Rxc8 32. Rg7 Qxg7 (32... Qxb3 33. Rhxh7#) 33. fxg7+ Kg8 34. Rh5) 28... Qxh5+ $3 {[%emt 0:02:18][%mdl 512]} 29. Qxh5 {[%emt 0:00:00]} (29. Rg4 Ra1+) 29... Ra1+ {[%emt 0:00:04]} 30. Bc1 {[%emt 0:00:00] [#]} Rxc1+ $1 {[%emt 0:00:05][%mdl 33280] Weighted Error Value: White=0.38/Black=0.14 (very precise) .  Loses game:     	White=1     	---        Mistake:       	White=3     	Black=4      Inaccurate:     	White=1     	Black=2      OK:         	White=9     	Black=8      Best:        	White=5     	Black=2      Strong:       	White=2     	Black=1      Brilliant:      	---       	Black=1     . Loss on time!?} 0-1

[Event "7th Sharjah Masters 2024"]
[Site "Sharjah"]
[Date "2024.05.16"]
[Round "3.3"]
[White "Niemann, Hans Moke"]
[Black "Theodorou, Nikolas"]
[Result "1-0"]
[ECO "C60"]
[WhiteElo "2689"]
[BlackElo "2617"]
[Annotator "TA"]
[PlyCount "93"]
[EventDate "2024.05.13"]
[EventType "swiss"]
[EventCountry "UAE"]
[SourceTitle "playchess.com"]
[Source "ChessBase"]
[SourceQuality "1"]
[TimeControl "5400+30"]

{[%evp 11,93,24,39,19,36,37,25,31,21,27,33,36,40,37,27,33,26,29,42,34,34,28,47,54,57,33,60,51,52,27,61,57,87,49,93,86,100,103,120,46,149,142,169,84,92,83,179,143,164,149,156,0,128,120,209,197,224,139,150,142,164,155,239,224,285,214,217,193,364,385,550,537,527,329,325,345,332,0,267,186,209,191,610,604]} 1. e4 {[%emt 1:31:00]} e5 {[%emt 1:31:00]} 2. Nf3 {[%emt 0:00:30]} Nc6 {[%emt 0:00:30]} 3. Bb5 {[%emt 0:00:30]} Nge7 {[%emt 0:00:30]} 4. O-O {[%emt 0:00:30]} Ng6 {[%emt 0:00:30]} 5. d4 {[%emt 0:00:30]} exd4 {[%emt 0:00:30]} 6. Nxd4 {[%emt 0:00:30]} Bc5 {[%emt 0:00:30]} 7. Be3 {[%emt 0:00:30]} Bxd4 {[%emt 0:00:30]} 8. Bxd4 {[%emt 0:00:30]} Qg5 {[%emt 0:00:30]} 9. Bxc6 {[%emt 0:00:30] White has an edge.} dxc6 {[%emt 0:00:30]} 10. f4 {[%emt 0:00:30]} Nxf4 {[%emt 0:00:30]} 11. Qd2 {[%emt 0:00:30]} Ne6 {aiming for ...Qxd2.} 12. Qxg5 {[%emt 0:00:30]} Nxg5 {[%emt 0:01:00]} 13. Bxg7 {[%emt 0:00:30] Black is weak on the dark squares} Rg8 {[%emt 0:00:30]} 14. Bf6 {[%emt 0:00:30]} h5 {[%emt 0:00:30]} (14... Nxe4 $2 15. Re1 $18) 15. Nd2 {[%emt 0:00:30]} Be6 {[%emt 0:00:30]} 16. Rae1 {[%emt 0:00:30][%cal Ba1e1,Be1e3,Be3d3][%mdl 32]} b6 {[%emt 0:00:30]} 17. Re3 {[%emt 0:00:30] Strongly threatening Rg3.} Rg6 18. Rd3 {[%emt 0:00:30]} (18. Rf5 $5 Nh7 19. Bh4 $16 (19. Rxh5 $2 Nxf6 20. Rh8+ Rg8 $19)) 18... c5 {[%emt 0:01:00]} 19. b3 {[%emt 0:00:30]} Rc8 {[%emt 0:00:30]} 20. c4 {[%emt 0:00:30]} Nh7 {[%emt 0:00:30]} 21. Bh4 Ng5 {[%emt 0:00:30]} 22. e5 {[%emt 0:01:00]} Bg4 {[%emt 0:00:30]} 23. Rf2 {[%emt 0:00:30] Inhibits Be2.} Be6 {[%emt 0:00:30]} 24. Kh1 {[%emt 0:00:30]} a6 {[%emt 0:00:30]} 25. a4 {[%emt 0:00:30]} ({White should play} 25. h3 $1 $16) 25... Rb8 {[%emt 0:00:30]} ({Black should try} 25... Bd7 $1 $14) 26. h3 $1 $16 {[%emt 0:00:30]} Ra8 {[%emt 0:00:30]} 27. Rf1 {[%emt 0:00:30]} (27. Kh2 $18) 27... Rb8 {[%emt 0:00:30]} 28. Kh2 {[%emt 0:00:30] White is more active.} Ra8 {[%emt 0:00:30]} (28... b5 $16) 29. Rf4 {[%emt 0:00:30]} Rb8 {[%emt 0:00:30]} (29... Rd8 $2 30. Rxd8+ Kxd8 31. Ne4 $18) 30. Rf2 {[%emt 0:00:30]} Ra8 {[%emt 0:00:30]} 31. Rf4 {[%emt 0:00:30]} Rb8 $1 {[%emt 0:00:30]} (31... Rd8 $2 32. Rxd8+ Kxd8 33. Ne4 $18) 32. Kh1 {[%emt 0:00:30]} Ra8 {[%emt 0:00:30] [#]} (32... b5 $16 {was necessary.} 33. cxb5 axb5) 33. Nf1 $1 $18 {[%emt 0:00:30]} Bd7 {[%emt 0:00:30]} 34. Ng3 {[%emt 0:00:30]} Bc6 {[%emt 0:00:30]} 35. Kh2 {[%emt 0:00:30]} b5 {[%emt 0:00:30]} 36. Rf5 {[%emt 0:00:30][%cal Bf4f5,Bf5h5,Bh5h6][%mdl 32]} Ne6 {[%emt 0:00:30]} (36... bxc4 $16 37. bxc4 Ne6 38. Rxh5 Nd4) 37. Rxh5 {[%emt 0:00:30]} Rg8 {[%emt 0:00:30]} 38. Rh6 {[%emt 0:00:30]} bxc4 {[%emt 0:00:30]} 39. bxc4 {[%emt 0:00:30] Threatens to win with Rd2.} Rb8 $2 {[%emt 0:00:30] [#]} (39... Kf8 40. Rd2 Rg6 41. Rh8+ Rg8) 40. Rd2 $1 {[%emt 0:00:30]} Rb1 {[%emt 0:00:30]} (40... Rb4 $142 41. Nh5 Kf8) 41. Nh5 {[%emt 0:00:30]} Kf8 {[%emt 0:00:30]} 42. Rf2 {[%emt 0:00:30]} Rf1 {[%emt 0:00:30]} 43. Rb2 {[%emt 0:00:30] Rb8+ would now be deadly.} (43. Rxf1 Rxg2+ (43... Bxg2 $2 44. Rxe6 $18) 44. Kh1 Rg6+ 45. Kh2 Rg2+ (45... Rxh6 46. Nf4 $15) 46. Kh1 Rg6+ 47. Kh2 Rg2+ $11 (47... Rxh6 48. Nf4 $17)) (43. Rxe6 $2 Rxf2 44. Be7+ (44. Rxc6 $2 Rfxg2+ 45. Kh1 Rg1+ 46. Kh2 R8g2#) 44... Ke8 45. Nf6+ Rxf6 46. Rxf6 Rxg2+ (46... Bxa4 47. Rxa6 Kxe7 48. Rxa4 $16) 47. Kh1 Rg6+ (47... Bxa4 $2 48. Kxg2 Kxe7 49. Kg3 $18) 48. Rxc6 Rxc6 $19) 43... Rb1 {[%emt 0:00:30]} 44. Rf2 $40 {[%emt 0:00:30][%mdl 128] Black needs to defend precisely.} (44. Rxb1 Rxg2+ (44... Bxa4 45. Rb8+ Be8 46. Nf6 Ke7 47. Nxg8+ Kd7 48. Nf6+ Kc6 49. Rxe8) 45. Kh1 Rg7+ 46. Kh2 Rg2+ 47. Kh1 Rg6+ 48. Kh2 Rg2+ $11 (48... Rxh6 49. Rb8+ Be8 50. Nf6 $14)) 44... Rf1 $1 {[%emt 0:00:30] ...Rxf2 is the strong threat.} 45. Rhf6 {[%emt 0:00:30]} ({Inferior is} 45. Rxf1 Rxg2+ (45... Bxg2 46. Rxe6 Rh8 47. Be7+ Kg8 48. Rg1 Rxh5 49. Rxg2+ Kh7 50. Rf6) 46. Kh1 Rg6+ 47. Kh2 Rxh6 $15) (45. Rxe6 $2 Rxf2 46. Be7+ (46. Rxc6 $2 {leads to mate.} Rfxg2+ 47. Kh1 Rg1+ 48. Kh2 R8g2#) 46... Ke8 47. Nf6+ Rxf6 48. Rxf6 Rxg2+ (48... Bxa4 49. Rxa6 Kxe7 50. Rxa4 $11) 49. Kh1 Rg6+ (49... Bxa4 $2 50. Kxg2 Kxe7 51. Kg3 $18) 50. Rxc6 Rxc6 $19) 45... Rxf2 {[%emt 0:00:30]} 46. Rxf2 {[%emt 0:00:30]} Bxg2 $2 {[%emt 0:00:30]} (46... Nd4 47. Bf6 Ke8) 47. Rxg2 {[%emt 0:00:30] Weighted Error Value: White=0.35/Black=0.35.  Mistake:       	White=2     	Black=7      Inaccurate:     	White=4     	Black=4      OK:         	White=14    	Black=8      Best:        	White=3     	Black=4      Strong:       	White=3     	Black=2} 1-0

[Event "7th Sharjah Masters 2024"]
[Site "Sharjah"]
[Date "2024.05.16"]
[Round "3.4"]
[White "Aravindh, Chithambaram VR."]
[Black "Krzyzanowski, Marcin"]
[Result "1-0"]
[ECO "E32"]
[WhiteElo "2671"]
[BlackElo "2526"]
[Annotator "TA"]
[PlyCount "95"]
[EventDate "2024.05.13"]
[EventType "swiss"]
[EventCountry "UAE"]
[SourceTitle "playchess.com"]
[Source "ChessBase"]
[SourceQuality "1"]
[TimeControl "5400+30"]

{[%evp 10,95,0,0,0,0,0,0,43,25,61,59,66,76,84,72,71,61,100,101,88,83,225,233,220,233,219,158,165,138,215,204,212,216,195,148,283,281,303,259,351,333,437,436,395,354,321,322,387,307,374,363,766,713,1165,1139,1131,1126,1075,0,773,0,1389,509,1298,1328,29979,12068,29983,29984,29984,29985,29986,29987,29987,12814,29982,29983,29981,29982,12833,1206,2781,0,37,0,29966,5193]} 1. d4 {[%emt 0:00:06]} Nf6 {[%emt 0:00:05]} 2. c4 {[%emt 0:00:11]} e6 {[%emt 0:00:08]} 3. Nc3 {[%emt 0:00:15]} Bb4 {[%emt 0:00:07]} 4. Qc2 {[%emt 0:00:15]} O-O {[%emt 0:02:14]} 5. e4 {[%emt 0:00:17]} d6 {[%emt 0:03:58]} 6. a3 {[%emt 0:00:32]} Bxc3+ {[%emt 0:00:10]} 7. bxc3 {[%emt 0:00:06]} e5 {[%emt 0:00:49]} 8. Bd3 {[%emt 0:00:12]} Re8 {[%emt 0:02:14] The position is equal.} 9. Ne2 {[%emt 0:01:58]} c5 {[%emt 0:01:13]} 10. d5 {[%emt 0:07:41]} Nbd7 {[%emt 0:02:31]} 11. f3 {[%emt 0:11:35]} Nf8 {[%emt 0:11:56]} 12. Be3 {[%emt 0:02:20]} Ng6 {[%emt 0:03:50]} 13. h4 {[%emt 0:07:02]} (13. Kf2 {looks sharper.} Nh4 14. Rhb1 Nh5 15. Qd2) 13... Nh5 {[%emt 0:06:11][%cal Oh5f4] [#]} 14. Qd2 $1 {[%emt 0:05:51]} h6 {[%emt 0:26:46]} 15. Kf2 {[%emt 0:05:59]} (15. Bc2 {simplifies} Nf6 16. Kf2 Bd7 17. Rag1) 15... f5 {[%emt 0:07:40]} (15... Nf6 $16 {might work better.}) 16. exf5 $18 {[%emt 0:05:15]} e4 {[%emt 0:02:35]} 17. Bxe4 {[%emt 0:08:14]} (17. fxe4 Ne5) (17. fxg6 $6 exd3 18. Ng3 (18. Qxd3 Qf6 $18) 18... Nxg3 19. Kxg3 Bf5 $16) 17... Ne5 {[%emt 0:00:52]} 18. Nf4 {[%emt 0:00:42]} Nxc4 {[%emt 0:03:47]} 19. Qe2 {[%emt 0:12:58]} Nxf4 {[%emt 0:03:19]} (19... Nxe3 $16 20. Qxe3 Nxf4 21. Qxf4 Qf6) 20. Bxf4 {[%emt 0:02:35]} b5 {[%emt 0:00:40]} 21. g4 {[%emt 0:00:22][%cal Bg2g4,Bg4g5][%mdl 32]} Rb8 {[%emt 0:01:53]} 22. Qc2 {[%emt 0:01:08]} (22. a4 $18 {Threatens to win with axb5.} a6 23. axb5 axb5 24. Qc2) 22... Ne5 {[%emt 0:02:14]} (22... Rb7 $16 {was worth a try.} 23. g5 Rf8) 23. g5 {[%emt 0:01:42]} h5 {[%emt 0:00:56]} 24. Rab1 {[%emt 0:08:09]} a5 {[%emt 0:01:07]} 25. Rhg1 {[%emt 0:03:05]} Kh8 {[%emt 0:04:21]} 26. Bxe5 {[%emt 0:01:20]} dxe5 {[%emt 0:02:43]} 27. Qe2 {[%emt 0:00:33] aiming for f4.} c4 {[%emt 0:05:27]} 28. Rg3 {[%emt 0:03:49]} Rf8 {[%emt 0:00:56]} 29. Qc2 {[%emt 0:03:00]} Qb6+ {[%emt 0:01:14]} 30. Kg2 {[%emt 0:00:18]} Qe3 $2 {[%emt 0:01:53] [#]} (30... Qc5 31. g6 Kg8) 31. f4 $1 {[%emt 0:00:58][%mdl 512]} Qxf4 {[%emt 0:00:36]} (31... Qc5 32. fxe5) 32. Rf1 {[%emt 0:00:21]} Qxh4 {[%emt 0:00:10]} 33. Rh1 {[%emt 0:04:52]} Qf4 {[%emt 0:00:01]} 34. Rf1 {[%emt 0:01:23]} Qh4 {[%emt 0:00:05]} 35. Rh1 {[%emt 0:00:01]} (35. f6 $142 Rd8 36. f7 (36. Rh1 Qf4 $18)) 35... Qf4 {[%emt 0:00:05][%cal Rc8f5]} 36. Rxh5+ {[%emt 0:00:05]} Kg8 {[%emt 0:00:02][%cal Bh8g8,Bg8f7,Bf7f6,Bf6g7][%mdl 32]} 37. f6 {[%emt 0:01:06]} gxf6 {[%emt 0:03:27]} 38. gxf6+ {[%emt 0:00:10]} Kf7 {[%emt 0:00:03]} 39. Bg6+ {[%emt 0:00:25]} Kxf6 {[%emt 0:00:08]} 40. Rf3 {[%emt 0:00:16]} Rg8 {[%emt 0:00:27]} 41. Rxf4+ {[%emt 0:01:17]} exf4 {[%emt 0:00:02] [#]} 42. Rf5+ {[%emt 0:01:20]} Bxf5 {[%emt 0:00:03]} 43. Qxf5+ {[%emt 0:00:04]} Kg7 {[%emt 0:00:04]} 44. Qf7+ {[%emt 0:00:04]} Kh6 {[%emt 0:00:03]} 45. Qh7+ {[%emt 0:00:03]} (45. Qxf4+ Kxg6 46. Qe4+ Kh6+ 47. Kh3 Rbf8 $11) 45... Kg5 {[%emt 0:00:05]} 46. Qh5+ $2 {[%emt 0:00:03]} (46. Bf7 $18 {[%cal Og2f3] White wants to mate with Kf3!} f3+ 47. Kxf3) 46... Kf6 $14 {[%emt 0:00:04]} 47. Qf5+ $2 {[%emt 0:00:03][%mdl 8192]} (47. Kf3 $14 Rxg6 48. Qh4+ (48. Kxf4 Re8 $14) 48... Kf7 49. Qh7+ (49. Qxf4+ Rf6 $19) (49. Kxf4 Re8 $11) 49... Kf6 50. d6 (50. Kxf4 Rbg8 $16)) 47... Kg7 {[%emt 0:00:04]} 48. Kf3 {[%emt 0:00:24] Weighted Error Value: White=0.55/Black=0.64.  Mistake:       	White=1     	Black=4      Inaccurate:     	---       	Black=8      OK:         	White=10    	Black=4      Best:        	White=2     	Black=4      Strong:       	White=1     	---        Brilliant:      	White=1     	---} 1-0